Cogmind - Beta 13 @@@ ROGUE MODE // 2024.04.07 @ 13:48:24 Player: Inomamais Result: Destroyed by G-67 Veteran with Plasma Rifle Performance ------------- Evolutions (6) 3000 Regions Visited (21) 4200 Robots Destroyed (176) 880 Value Destroyed (9371) 9371 Prototype IDs (33) 660 Alien Tech Used (0) 0 Bonus (3181) 3181 TOTAL SCORE: 21292 Bonus ------- High Alert Combat Kills 1201 Follower Combat Kills 1581 Entered Garrisons 200 Network Hubs Disabled 200 Met Data Miner 300 Met Imprinter 300 Was Imprinted 300 Friendly Fire -901 Cogmind --------- Core Integrity 0/1150 Matter 102/300 Energy 310/310 System Corruption 36% Temperature Cool (0) Movement Rolling (170) Ox4 Location -4/Factory Parts ------- > --- POWER (2) -------- Reinforced Fission Core > --- PROPULSION (6) --- Centrium Wheel > --- UTILITY (9) ------ High-capacity Storage Unit Enhanced Optical Array Advanced Signal Interpreter Improved Melee Analysis Suite Improved Melee Analysis Suite Graphene Brace Advanced Hacking Suite > --- WEAPON (2) ------- Heavy Mace > --- INVENTORY (20) --- Light Antimatter Reactor Flexi-carbon Leg Flexi-carbon Leg Improved Coolant Injector Advanced Signal Interpreter Improved Medium Armor Plating Improved Proton Missile Launcher Micro-nuke Launcher Heavy Mace Peak State ------------ > --- POWER ------------ Antimatter Reactor Light Antimatter Reactor > --- PROPULSION ------- Flexi-carbon Leg Flexi-carbon Leg Flexi-carbon Leg Flexi-carbon Leg Flexi-carbon Leg Myomer Leg > --- UTILITY ---------- High-capacity Storage Unit Enhanced Optical Array Advanced Signal Interpreter Advanced Transmission Jammer Layered Medium Armor Plating Graphene Brace Advanced Hacking Suite Advanced Hacking Suite Advanced System Shield > --- WEAPON ----------- Phasing Sabre Phasing Sabre > --- INVENTORY -------- Reinforced Fission Core Antimatter Reactor Flexi-carbon Leg Flexi-carbon Leg Flexi-carbon Leg Myomer Leg Centrium Wheel Improved Coolant Injector Advanced Signal Interpreter Improved Melee Analysis Suite Improved Melee Analysis Suite Improved Melee Analysis Suite Transmission Jammer Hardened Light Armor Plating Improved Medium Armor Plating Improved Proton Missile Launcher Micro-nuke Launcher Heavy Mace Heavy Mace [Rating: 115] Favorites ----------- Power Angular Momentum Engine Engine Angular Momentum Engine Power Core Fission Core Reactor Particle Reactor Propulsion Carbon-fiber Leg Leg Carbon-fiber Leg Wheel Armored Huge Wheel Utility Large Storage Unit Device Advanced Sensor Array Storage Large Storage Unit Processor Advanced Signal Interpreter Hackware Improved Hacking Suite Protection Hardened Medium Armor Plating Weapon Phasing Sabre Energy Gun Phase Gun Ballistic Gun Light Assault Rifle Launcher Long-range Missile Launcher Impact Weapon Powered Hammer Slashing Weapon Phasing Sabre Build | -11 -10 -10 -9 -9 -7 -6 -6 -6 -6 -6 -6 -6 -6 -6 -5 -5 -5 -5 -5 -5 -4 ------- Run | Yrd Mat Min Mat Min Zio Pro Fac Was Fac Gar Fac Low Low Dat Pro Fac Ext Cet Arc Hub Fac Slots Evolved 12 | . . . 2 . . . 6 . . . . . . . . 2 . . . . 2 Power 1 | . . . . . . . 1 . . . . . . . . . . . . . . Propulsion 4 | . . . 2 . . . 2 . . . . . . . . . . . . . . Utility 7 | . . . . . . . 3 . . . . . . . . 2 . . . . 2 Weapon . | . . . . . . . . . . . . . . . . . . . . . . Parts Attached 280 | 6 10 7 2 . . 16 13 . . 29 36 11 11 . 2 15 26 13 4 5 74 Power 38 | 1 . . . . . 3 2 . . 5 6 . . . . 4 4 1 2 . 10 Engine 17 | 1 . . . . . 2 1 . . 5 3 . . . . . 3 1 1 . . Core 9 | . . . . . . 1 1 . . . 3 . . . . 2 . . . . 2 Reactor 12 | . . . . . . . . . . . . . . . . 2 1 . 1 . 8 Propulsion 104 | 2 2 2 2 . . 5 3 . . 8 8 3 3 . . 5 16 7 1 2 35 Treads . | . . . . . . . . . . . . . . . . . . . . . . Leg 93 | . . 1 2 . . 5 1 . . 8 6 2 3 . . 5 16 7 1 2 34 Wheel 11 | 2 2 1 . . . . 2 . . . 2 1 . . . . . . . . 1 Hover . | . . . . . . . . . . . . . . . . . . . . . . Flight . | . . . . . . . . . . . . . . . . . . . . . . Utility 56 | 1 2 . . . . 2 6 . . 4 7 2 2 . . 3 2 2 . 1 22 Device 16 | . 1 . . . . . 2 . . 2 3 1 1 . . . 1 . . . 5 Storage 3 | 1 1 . . . . . . . . . . . . . . . . . . . 1 Processor 11 | . . . . . . . 1 . . . 1 . 1 . . 1 . 1 . . 6 Hackware 6 | . . . . . . . . . . . . . . . . 2 . . . 1 3 Protection 20 | . . . . . . 2 3 . . 2 3 1 . . . . 1 1 . . 7 Artifact . | . . . . . . . . . . . . . . . . . . . . . . Weapon 82 | 2 6 5 . . . 6 2 . . 12 15 6 6 . 2 3 4 3 1 2 7 Energy Gun 20 | . . 1 . . . . 1 . . 4 9 2 2 . 1 . . . . . . Energy Cannon . | . . . . . . . . . . . . . . . . . . . . . . Ballistic Gun 12 | 2 4 3 . . . 3 . . . . . . . . . . . . . . . Ballistic Cannon . | . . . . . . . . . . . . . . . . . . . . . . Launcher 22 | . 2 1 . . . 3 . . . 5 . 3 2 . 1 . 1 2 . 1 1 Special Weapon . | . . . . . . . . . . . . . . . . . . . . . . Impact Weapon 13 | . . . . . . . 1 . . 3 6 . 1 . . 1 . . . . 1 Slashing Weapon 15 | . . . . . . . . . . . . 1 1 . . 2 3 1 1 1 5 Piercing Weapon . | . . . . . . . . . . . . . . . . . . . . . . Special Melee Weapon . | . . . . . . . . . . . . . . . . . . . . . . Unidentified Prototypes 3 | . . . . . . . . . . . . . . . . 1 . . . 1 1 Parts Lost 106 | . 1 2 . . . 7 1 . . 5 9 1 4 . 1 5 10 4 1 1 54 Power 16 | . . . . . . 2 . . . 1 . . . . . 2 2 . . . 9 Propulsion 53 | . . 2 . . . 2 1 . . 2 6 1 2 . . 3 4 3 1 1 25 Utility 25 | . . . . . . 1 . . . 2 2 . 1 . . . 3 1 . . 15 Weapon 12 | . 1 . . . . 2 . . . . 1 . 1 . 1 . 1 . . . 5 Highest Loss Streak 18 | . 1 1 . . . 5 1 . . 4 3 1 4 . 1 4 3 4 1 1 18 To Critical Strikes 3 | . . . . . . . . . . . . . . . . . . 2 . . 1 Average Slot Usage (%) 94 | . 96 100 100 100 100 87 81 93 93 92 92 97 98 100 100 94 93 96 100 99 95 Engine 6 | . 14 14 11 11 11 1 6 6 6 10 9 13 13 13 13 2 4 11 7 5 . Core 1 | . . . . . . 5 5 6 6 2 3 . . . . 2 . . . . 1 Reactor 2 | . . . . . . . . . . . . . . . . 6 5 . 3 5 7 Leg 27 | . . 10 33 33 33 34 25 20 20 19 22 25 38 40 40 30 33 34 35 34 28 Wheel 5 | . 28 17 11 11 11 . 1 13 13 13 9 11 . . . . . . . . . Device 7 | . 10 14 11 11 11 1 4 6 6 8 12 13 12 13 13 5 3 . . . 6 Storage 6 | . 14 14 11 11 11 11 6 6 6 6 6 6 6 6 6 5 5 5 5 5 5 Processor 11 | . . . . . . . 2 6 6 6 6 6 10 13 13 16 17 20 23 23 21 Hackware 3 | . . . . . . . . . . . . . . . . 11 9 5 5 5 6 Protection 4 | . . . . . . 9 12 13 13 10 6 6 2 . . . 1 4 5 5 4 Energy Gun 3 | . . 3 . . . . 4 6 6 6 8 7 6 6 10 1 . . . . . Ballistic Gun 3 | . 26 23 22 22 22 16 1 . . . . . . . . . . . . . . Impact Weapon 1 | . . . . . . . 5 6 6 5 3 1 . . . 3 . . . . . Slashing Weapon 3 | . . . . . . . . . . . . . 2 . . 4 8 5 9 10 9 Naked Turns . | . . . . . . . . . . . . . . . . . . . . . . Heaviest Build 105 | 13 30 31 28 28 28 39 73 55 55 64 68 68 68 62 62 64 62 57 60 64 105 Greatest Support 133 | 32 32 32 30 30 30 40 40 40 40 40 40 72 111 111 111 119 133 133 123 118 132 Greatest Overweight (x) 6 | . 1 1 . . . 1 1 1 1 1 6 3 . . . . . . . . 4 Average Overweight (x) . | . . . . . . . . 1 1 1 1 1 . . . . . . . . . Largest Inventory Capacity 20 | 8 15 15 15 15 15 15 15 15 15 15 15 15 15 15 15 15 15 15 15 15 20 Average Capacity 15 | 7 10 15 15 15 15 15 15 15 15 15 15 15 15 15 15 15 15 15 15 15 19 Most Carried 20 | 6 12 14 13 13 15 15 15 15 15 15 15 15 15 12 15 15 15 15 15 15 20 Average Carried 14 | 3 8 13 12 12 14 13 12 15 15 14 14 14 12 12 13 14 14 15 14 14 16 Final Capacity 20 | 8 15 15 15 15 15 15 15 15 15 15 15 15 15 15 15 15 15 15 15 15 20 Final Carried 15 | 6 12 14 12 13 15 9 15 15 15 15 14 15 12 12 15 15 15 15 15 15 9 Class Distribution -------------------- 33% | Scavenger-Mutant 16% | Mutant 10% | Hacker-Gladiator 9% | Scavenger-Gladiator 8% | Messiah-Gladiator 6% | Skirmisher 5% | Commander-Gladiator 3% | Hacker-Mutant Dominant Class ---------------- Mutant | -10/Materials Mutant | -10/Mines Scavenger-Mutant | -9/Materials Scavenger-Mutant | -9/Mines Scavenger-Mutant | -7/Zion Scavenger-Mutant | -6/Proximity Caves Scavenger-Mutant | -6/Factory Scavenger-Mutant | -6/Waste Scavenger-Mutant | -6/Factory Scavenger-Mutant | -6/Garrison Mutant | -6/Factory Mutant | -6/Lower Caves Derelict-Mutant | -6/Lower Caves Skirmisher | -6/Data Miner Skirmisher | -5/Proximity Caves Hacker-Gladiator | -5/Factory Commander-Gladiator | -5/Extension Scavenger-Mutant | -5/Cetus Scavenger-Gladiator | -5/Archives Scavenger-Gladiator | -5/Hub_04(d) Messiah-Gladiator | -4/Factory Resources | -11 -10 -10 -9 -9 -7 -6 -6 -6 -6 -6 -6 -6 -6 -6 -5 -5 -5 -5 -5 -5 -4 ----------- Run | Yrd Mat Min Mat Min Zio Pro Fac Was Fac Gar Fac Low Low Dat Pro Fac Ext Cet Arc Hub Fac Matter Collected 4573 | 230 172 136 180 34 24 236 209 . 8 364 374 282 356 . 180 157 342 221 258 54 756 Remotely . | . . . . . . . . . . . . . . . . . . . . . . Salvage Created 7672 | . 229 93 . . . 183 209 . . 622 470 245 573 . 98 538 1186 255 206 95 2670 Parts 325 | . 18 8 . . . 2 14 . . 36 24 2 15 . 1 18 33 11 13 4 126 Haulers Intercepted . | . . . . . . . . . . . . . . . . . . . . . . Recyclers Shooed . | . . . . . . . . . . . . . . . . . . . . . . Parts Field Recycled . | . . . . . . . . . . . . . . . . . . . . . . Retrieved Matter . | . . . . . . . . . . . . . . . . . . . . . . Parts Self-Destructed 17 | . . . . . 5 2 . . . . . 1 9 . . . . . . . . Prevented 12 | . . . . . . 4 . . . . . . 6 . 2 . . . . . . Kills | -11 -10 -10 -9 -9 -7 -6 -6 -6 -6 -6 -6 -6 -6 -6 -5 -5 -5 -5 -5 -5 -4 ------- Run | Yrd Mat Min Mat Min Zio Pro Fac Was Fac Gar Fac Low Low Dat Pro Fac Ext Cet Arc Hub Fac Combat Hostiles Destroyed 150 | . 6 5 . . . 6 3 . . 22 9 5 17 . 3 9 12 6 3 . 44 Melee 61 | . . . . . . . . . . . . . . . . 8 12 . 2 . 39 Guns 32 | . 6 1 . . . 2 2 . . 8 9 2 1 . 1 . . . . . . AOE 52 | . . 4 . . . 3 . . . 13 . 3 16 . 2 . . 6 1 . 4 Classes Destroyed 17 | . 5 . . . . 3 2 . . 1 . . 2 . . . . . 1 1 2 Worker 4 | . . . . . . . . . . . . . . . . . . . . 2 2 Builder 5 | . 1 . . . . . . . . . . . . . . . 1 . . 2 1 Recycler 4 | . 1 . . . . . . . . . . . . . . . 3 . . . . Mechanic 2 | . . . . . . . . . . . . . 1 . . . . . . . 1 Operator 3 | . . . . . . . . . . . . . . . . . . . 2 . 1 Watcher 5 | . 2 . . . . . 1 . . . . . . . . . . 1 . . 1 Swarmer 30 | . 5 3 . . . . . . . 10 2 . 1 . . . . 4 . . 5 Grunt 65 | . 1 2 . . . 3 . . . 11 . 4 12 . 1 4 10 . . . 17 Brawler 5 | . . . . . . 1 . . . . . . 1 . . . . . . . 3 Duelist 2 | . . . . . . . . . . . . . 2 . . . . . . . . Sentry 18 | . . . . . . . 2 . . . 5 . 1 . . 1 2 . 3 . 4 Demolisher 1 | . . . . . . . . . . 1 . . . . . . . . . . . Specialist 2 | . . . . . . . . . . . . . . . . . . . . . 2 Hunter 3 | . . . . . . 1 . . . . . . . . . . . . . . 2 Programmer 20 | . . . . . . . 1 . . . 2 1 . . 2 4 . . . . 10 Heavy 1 | . . . . . . . . . . . . . . . . . . . . . 1 Behemoth 1 | . . . . . . 1 . . . . . . . . . . . . . . . Cetus Guard 2 | . . . . . . . . . . . . . . . . . . 2 . . . Thug 1 | . . . . . . . . . . . . . . . . . . 1 . . . Savage 1 | . . . . . . . . . . . . . . . . . . 1 . . . Butcher 1 | . . . . . . . . . . . . . . . . . . 1 . . . Best Kill Streak 14 | . 3 3 . . . 3 1 . . 6 2 4 14 . 2 4 5 4 2 3 6 Combat Bots Only 13 | . 2 3 . . . 3 1 . . 6 2 4 13 . 2 4 5 4 1 . 4 Max Kills in Single Turn 5 | . 1 3 . . . 2 1 . . 3 1 1 5 . 1 1 1 4 1 3 3 Gunslinging . | . . . . . . . . . . . . . . . . . . . . . . Exploded 5 | . . 3 . . . 2 . . . 3 . 1 5 . 1 . . 4 1 . 1 Melee 1 | . . . . . . . . . . . . . . . . 1 1 . 1 . 1 Uniques/NPCs Destroyed . | . . . . . . . . . . . . . . . . . . . . . . Combat | -11 -10 -10 -9 -9 -7 -6 -6 -6 -6 -6 -6 -6 -6 -6 -5 -5 -5 -5 -5 -5 -4 -------- Run | Yrd Mat Min Mat Min Zio Pro Fac Was Fac Gar Fac Low Low Dat Pro Fac Ext Cet Arc Hub Fac Hostile Shots Fired 1276 | . 42 9 . . . 95 73 . . 104 176 23 34 . 23 57 96 36 27 4 477 Missed 401 | . 9 3 . . . 29 22 . . 28 52 13 11 . 10 11 20 12 7 2 172 Damage Taken 17065 | . 293 111 . . . 1305 419 . 65 1405 1150 192 665 . 260 921 1607 710 525 185 7252 Core 2281 | . 95 . . . . 191 34 . . 140 122 . 68 . 41 37 205 117 30 32 1169 Absorbed by Shields . | . . . . . . . . . . . . . . . . . . . . . . Redirected to Shielding 236 | . . . . . . . 89 . 1 59 . . . . . . . . . . 87 Regen/Repaired (Parts) 306 | . . . . . . . 75 122 . . . . . . . . . . . . 109 Core Remaining (%) 64 | 100 . 62 . . . 52 . . . . . . . . 52 . . . . 57 . Volleys Fired 265 | . 38 8 . . . 23 22 . . 62 32 11 17 . 16 . 6 6 14 2 8 Largest 2 | . 2 2 . . . 2 1 . . 2 2 2 2 . 2 . 1 1 1 1 1 Hottest 182 | . 50 70 . . . 78 88 . . 182 182 176 176 . 176 . 43 43 43 43 49 Shots Fired 374 | . 75 14 . . . 46 22 . . 69 52 17 21 . 23 . 6 6 13 2 8 Gun 285 | . 72 12 . . . 34 22 . . 57 52 12 6 . 18 . . . . . . Cannon . | . . . . . . . . . . . . . . . . . . . . . . Launcher 89 | . 3 2 . . . 12 . . . 12 . 5 15 . 5 . 6 6 13 2 8 Special . | . . . . . . . . . . . . . . . . . . . . . . Kinetic 113 | . 72 7 . . . 34 . . . . . . . . . . . . . . . Thermal 172 | . . 5 . . . . 22 . . 57 52 12 6 . 18 . . . . . . Explosive 89 | . 3 2 . . . 12 . . . 12 . 5 15 . 5 . 6 6 13 2 8 Electromagnetic . | . . . . . . . . . . . . . . . . . . . . . . Robot Hit Streak 18 | . 10 4 . . . 12 18 . . 8 7 8 8 . 9 . . 2 10 . 8 Robot Miss Streak 5 | . 5 3 . . . 3 2 . . 2 3 2 1 . 1 . . 2 2 . 1 Penetration Max . | . . . . . . . . . . . . . . . . . . . . . . Secondary Targets 1 | . 1 . . . . . . . . . . . . . . . . . . . . Max Gunslinging Chain 1 | . 1 . . . . . . . . . . . . . . . . . . . . Shots Hit Robots 527 | . 36 6 . . . 34 18 . . 49 29 13 21 . 18 34 48 3 26 4 188 Core Hits 331 | . 18 9 . . . 20 6 . . 51 14 11 43 . 6 10 18 26 18 4 77 Critical Kills 2 | . . . . . . . . . . . . . . . . . . . . . 2 Critical Parts Destroyed 7 | . . . . . . 1 . . . . . . . . . 4 . . . . 2 Critical Strikes 62 | . . . . . . 1 . . . 1 . 3 2 . 2 10 11 . 1 1 30 Burn 8 | . . . . . . . . . . 1 . 3 2 . 2 . . . . . . Destroy 1 | . . . . . . 1 . . . . . . . . . . . . . . . Smash 8 | . . . . . . . . . . . . . . . . 4 . . . . 4 Sever 45 | . . . . . . . . . . . . . . . . 6 11 . 1 1 26 Melee Attacks 512 | . . . . . . . 5 . . 34 41 1 11 . . 66 51 . 17 9 277 Impact 111 | . . . . . . . 5 . . 34 41 . 5 . . 9 . . . . 17 Slashing 401 | . . . . . . . . . . . . 1 6 . . 57 51 . 17 9 260 Piercing . | . . . . . . . . . . . . . . . . . . . . . . Sneak Attacks 13 | . . . . . . . . . . . . . . . . . 4 . 2 1 6 Combat Hostiles 2 | . . . . . . . . . . . . . . . . . 1 . . . 1 Follow-up Attacks 38 | . . . . . . . . . . . . . . . . 7 1 . 3 1 26 Damage Inflicted 27388 | . 440 194 . . . 1129 509 . . 2855 853 882 3158 . 709 1414 2789 1114 1392 570 9380 Guns 4015 | . 370 56 . . . 202 509 . . 1198 853 334 109 . 384 . . . . . . Cannons . | . . . . . . . . . . . . . . . . . . . . . . Explosions 9809 | . 70 138 . . . 927 . . . 1657 . 470 2710 . 325 . 197 1114 559 353 1289 Melee 13564 | . . . . . . . . . . . . 78 339 . . 1414 2592 . 833 217 8091 Ramming . | . . . . . . . . . . . . . . . . . . . . . . Kinetic 603 | . 370 31 . . . 202 . . . . . . . . . . . . . . . Thermal 3412 | . . 25 . . . . 509 . . 1198 853 334 109 . 384 . . . . . . Explosive 9456 | . 70 138 . . . 927 . . . 1657 . 470 2710 . 325 . 197 1114 559 . 1289 Electromagnetic 353 | . . . . . . . . . . . . . . . . . . . . 353 . Impact 896 | . . . . . . . . . . . . . . . . 274 . . . . 622 Slashing 12668 | . . . . . . . . . . . . 78 339 . . 1140 2592 . 833 217 7469 Piercing . | . . . . . . . . . . . . . . . . . . . . . . Highest Corruption 36 | . . . . . . . . . . . 6 7 7 7 8 6 6 6 6 7 36 Average Corruption 8 | . . . . . . . . . . . 5 6 7 7 7 3 6 6 6 6 13 Corruption Purged . | . . . . . . . . . . . . . . . . . . . . . . Corruption Blocked . | . . . . . . . . . . . . . . . . . . . . . . Effects 274 | . . . . . . . . . . . 31 17 20 3 23 17 34 9 11 8 101 Message Errors 85 | . . . . . . . . . . . 11 5 4 . 8 6 15 1 1 3 31 Matter Fused 75 | . . . . . . . . . . . 7 2 4 1 11 5 4 1 5 3 32 Heat Flow Errors 23 | . . . . . . . . . . . 4 3 2 1 1 . 3 1 . . 8 Energy Discharges 32 | . . . . . . . . . . . 1 4 4 1 2 3 4 . 2 . 11 Parts Rejected 3 | . . . . . . . . . . . . . . . . . 1 . . . 2 Parts Fused 4 | . . . . . . . . . . . . . 1 . . . 1 1 . . 1 Data Loss (minor) 33 | . . . . . . . . . . . 4 2 3 . 1 2 3 4 1 2 11 Data Loss (major) 11 | . . . . . . . . . . . 3 1 . . . 1 1 1 1 . 3 Misfires 1 | . . . . . . . . . . . 1 . . . . . . . . . . Alerts 5 | . . . . . . . . . . . . . 2 . . . 2 . . . 1 Misdirections 1 | . . . . . . . . . . . . . . . . . . . . . 1 Weapon Failures 1 | . . . . . . . . . . . . . . . . . . . 1 . . Overload Shots . | . . . . . . . . . . . . . . . . . . . . . . Overflow Damage 1177 | . . 3 . . . 4 . . . 41 . 36 208 . 9 190 33 11 41 74 527 Projectiles . | . . . . . . . . . . . . . . . . . . . . . . Explosions 356 | . . 3 . . . 4 . . . 41 . . 148 . 9 . 5 11 41 23 71 Melee 821 | . . . . . . . . . . . . 36 60 . . 190 28 . . 51 456 Knockbacks 3 | . . . . . . . . . . . . . . . . 1 . . . . 2 Impact 3 | . . . . . . . . . . . . . . . . 1 . . . . 2 Kinetic . | . . . . . . . . . . . . . . . . . . . . . . Secondary . | . . . . . . . . . . . . . . . . . . . . . . Self-Inflicted Damage 563 | . . 20 . . . . . . . 71 . . 166 . . . 31 46 . 96 133 Shots 16 | . . 1 . . . . . . . 3 . . 6 . . . 1 1 . 1 3 Rammed . | . . . . . . . . . . . . . . . . . . . . . . Targets Rammed . | . . . . . . . . . . . . . . . . . . . . . . Kicked . | . . . . . . . . . . . . . . . . . . . . . . Crushed . | . . . . . . . . . . . . . . . . . . . . . . Highest Temperature 360 | . 12 106 . . . 69 188 . . 230 360 252 268 173 258 10 270 242 . 4 250 Average Temperature 85 | . 7 56 . . . 42 60 . . 81 87 124 108 95 129 7 86 116 . 3 91 Received Heat Transfer 3310 | . 54 51 . . . 246 96 . . 504 252 67 180 . 54 261 504 57 81 30 873 Effects 4 | . . . . . . . . . . . . . . . 3 . . . . . 1 Energy Bleed 1 | . . . . . . . . . . . . . . . . . . . . . 1 Interference 3 | . . . . . . . . . . . . . . . 3 . . . . . . Siege Activations . | . . . . . . . . . . . . . . . . . . . . . . Robots Corrupted . | . . . . . . . . . . . . . . . . . . . . . . Combat Hostiles . | . . . . . . . . . . . . . . . . . . . . . . Parts Fried 7 | . . . . . . . . . . . . . . . . 4 . . . 3 . Impact Corruptions 9 | . . . . . . . . . . . . . . . . 5 . . . . 4 Robots Melted 2 | . . . . . . . 1 . . 1 . . . . . . . . . . . Combat Hostiles 2 | . . . . . . . 1 . . 1 . . . . . . . . . . . Parts Melted 10 | . . . . . . . 3 . . 2 1 3 . . 1 . . . . . . Heat Transferred 4867 | . . 74 . . . . 703 . . 1352 1110 629 296 . 703 . . . . . . Parts Sabotaged . | . . . . . . . . . . . . . . . . . . . . . . Parts Stolen . | . . . . . . . . . . . . . . . . . . . . . . Parts Stripped . | . . . . . . . . . . . . . . . . . . . . . . Power Chain Reactions . | . . . . . . . . . . . . . . . . . . . . . . Alert | -11 -10 -10 -9 -9 -7 -6 -6 -6 -6 -6 -6 -6 -6 -6 -5 -5 -5 -5 -5 -5 -4 ------- Run | Yrd Mat Min Mat Min Zio Pro Fac Was Fac Gar Fac Low Low Dat Pro Fac Ext Cet Arc Hub Fac Peak Influence 1147 | . 171 162 78 30 . . 72 25 94 1147 668 . . . . 111 521 565 404 861 1053 Initial 602 | . . 26 63 30 . . 31 25 17 65 602 . . . . . . 217 218 71 421 Average 350 | . 73 140 70 30 . . 28 25 45 659 445 . . . . 34 220 489 354 412 552 Maximum Alert Level 4 | . . . . . . . . . . 4 2 . . . . . 2 2 2 3 3 Low Security (%) 36 | 100 100 100 100 100 . . 100 100 100 7 . . . . . 100 56 . . 31 . Level 1 17 | . . . . . . . . . . 8 41 . . . . . 24 18 75 34 14 Level 2 35 | . . . . . . . . . . 42 58 . . . . . 19 81 24 . 66 Level 3 8 | . . . . . . . . . . 33 . . . . . . . . . 34 18 Level 4 . | . . . . . . . . . . 7 . . . . . . . . . . . Level 5 . | . . . . . . . . . . . . . . . . . . . . . . High Security . | . . . . . . . . . . . . . . . . . . . . . . Max Security . | . . . . . . . . . . . . . . . . . . . . . . Squads Dispatched 29 | . 2 . 1 . . . 1 . 1 . 4 . 1 . . 3 1 . . 1 14 Investigation 3 | . . . . . . . . . . . . . . . . 1 1 . . . 1 Extermination 11 | . . . . . . . 1 . . . 2 . . . . 2 . . . . 6 Reinforcement 7 | . 2 . 1 . . . . . . . 1 . . . . . . . . . 3 Assault 6 | . . . . . . . . . . . . . 1 . . . . . . 1 4 Garrison 2 | . . . . . . . . . 1 . 1 . . . . . . . . . . Intercept . | . . . . . . . . . . . . . . . . . . . . . . Searches Triggered . | . . . . . . . . . . . . . . . . . . . . . . Data Miner Redirects 2 | . . . . . . . . . . . . . . . . . . . . . 2 Construction Impeded . | . . . . . . . . . . . . . . . . . . . . . . Haulers Reinforced 1 | . . . . . . . . . . . . . . . . . . . . . 1 Active Scanning Responses . | . . . . . . . . . . . . . . . . . . . . . . Cargo Convoy Interrupts . | . . . . . . . . . . . . . . . . . . . . . . Stealth | -11 -10 -10 -9 -9 -7 -6 -6 -6 -6 -6 -6 -6 -6 -6 -5 -5 -5 -5 -5 -5 -4 --------- Run | Yrd Mat Min Mat Min Zio Pro Fac Was Fac Gar Fac Low Low Dat Pro Fac Ext Cet Arc Hub Fac Distress Signals 2 | . . . . . . . . . . . . . . . . . 2 . . . . Communications Jammed 100 | . . . . . . . . . . . . . . . . . . . . . 100 Distress Signals 78 | . . . . . . . . . . . . . . . . . . . . . 78 Times Spotted 258 | . 15 5 1 . . 11 6 . 4 30 15 4 18 . 5 10 24 12 6 13 79 Peak Tracking Total 10 | . 3 3 1 . . 4 2 . 2 4 5 4 10 . 2 4 4 5 1 6 6 Tactical Retreats 20 | . 1 . . . . 2 . . . 1 1 . . . 2 1 . . . . 12 Traps | -11 -10 -10 -9 -9 -7 -6 -6 -6 -6 -6 -6 -6 -6 -6 -5 -5 -5 -5 -5 -5 -4 ------- Run | Yrd Mat Min Mat Min Zio Pro Fac Was Fac Gar Fac Low Low Dat Pro Fac Ext Cet Arc Hub Fac Traps Triggered 14 | . . . . . . . 2 . . 4 7 . . . . . . . . . 1 Indirectly . | . . . . . . . . . . . . . . . . . . . . . . Trap Hack Attempts . | . . . . . . . . . . . . . . . . . . . . . . Triggered . | . . . . . . . . . . . . . . . . . . . . . . Disarmed . | . . . . . . . . . . . . . . . . . . . . . . Reprogrammed . | . . . . . . . . . . . . . . . . . . . . . . Reused . | . . . . . . . . . . . . . . . . . . . . . . Traps Extracted . | . . . . . . . . . . . . . . . . . . . . . . Installed . | . . . . . . . . . . . . . . . . . . . . . . Triggered 3 | . . . . . . . . . . . . . 1 . 2 . . . . . . Most Traps Carried 1 | . . . . . . . . . . . . . . . 1 1 1 . . . . Machines | -11 -10 -10 -9 -9 -7 -6 -6 -6 -6 -6 -6 -6 -6 -6 -5 -5 -5 -5 -5 -5 -4 ---------- Run | Yrd Mat Min Mat Min Zio Pro Fac Was Fac Gar Fac Low Low Dat Pro Fac Ext Cet Arc Hub Fac Machines Disabled 35 | . . 1 . . . . . . . 5 . . 2 . . . . 1 4 21 1 Max in Single Turn 20 | . . 1 . . . . . . . 1 . . 1 . . . . . 2 20 1 Garrison Access 2 | . . . . . . . . . . . . . . . . . . . . . 2 Garrison Relay 5 | . . . . . . . . . . 5 . . . . . . . . . . . Network Hub 1 | . . . . . . . . . . . . . . . . . . . . 1 . Machines Repaired . | . . . . . . . . . . . . . . . . . . . . . . Machines Dismantled . | . . . . . . . . . . . . . . . . . . . . . . Machines Sabotaged . | . . . . . . . . . . . . . . . . . . . . . . Overloaded Fab Kills . | . . . . . . . . . . . . . . . . . . . . . . Hacking | -11 -10 -10 -9 -9 -7 -6 -6 -6 -6 -6 -6 -6 -6 -6 -5 -5 -5 -5 -5 -5 -4 --------- Run | Yrd Mat Min Mat Min Zio Pro Fac Was Fac Gar Fac Low Low Dat Pro Fac Ext Cet Arc Hub Fac Machines Accessed 25 | . 1 . . . . . 3 . 1 . 2 1 . 4 . 5 . 2 1 . 5 Terminals 4 | . 1 . . . . . . . . . . . . . . 1 . 2 . . . Fabricators 6 | . . . . . . . 2 . . . 1 . . . . 2 . . . . 1 Repair Stations 4 | . . . . . . . 1 . . . 1 . . . . 1 . . . . 1 Recycling Units . | . . . . . . . . . . . . . . . . . . . . . . Scanalyzers 1 | . . . . . . . . . . . . . . . . . . . . . 1 Garrison Access 4 | . . . . . . . . . 1 . . . . . . 1 . . . . 2 Total Hacks 85 | . 4 . . . . . 5 . 2 . 3 1 . 29 . 11 . 8 8 . 14 Successful 58 | . 1 . . . . . 3 . 1 . 1 1 . 29 . 4 . 5 8 . 5 Failed 27 | . 3 . . . . . 2 . 1 . 2 . . . . 7 . 3 . . 9 Catastrophic 2 | . . . . . . . 1 . . . . . . . . 1 . . . . . Database Lockouts . | . . . . . . . . . . . . . . . . . . . . . . Manual 78 | . 3 . . . . . . . . 5 23 . . . . 18 3 . . 9 17 Terminals 13 | . 4 . . . . . . . . . . . . . . 1 . 8 . . . Fabricators 9 | . . . . . . . 2 . . . 2 . . . . 4 . . . . 1 Repair Stations 7 | . . . . . . . 3 . . . 1 . . . . 1 . . . . 2 Recycling Units . | . . . . . . . . . . . . . . . . . . . . . . Scanalyzers 2 | . . . . . . . . . . . . . . . . . . . . . 2 Garrison Access 16 | . . . . . . . . . 2 . . . . . . 5 . . . . 9 Terminal Hacks 45 | . 1 . . . . . . . . . . 1 . 29 . 1 . 5 8 . . Record 23 | . . . . . . . . . . . . . . 11 . . . 4 8 . . Part Schematic 10 | . . . . . . . . . . . . . . 10 . . . . . . . Robot Schematic 5 | . . . . . . . . . . . . . . 5 . . . . . . . Prototype ID Bank 3 | . . . . . . . . . . . . . . 3 . . . . . . . Open Door 3 | . . . . . . . . . . . . 1 . . . 1 . 1 . . . Level Access Points 1 | . 1 . . . . . . . . . . . . . . . . . . . . Fabricator Hacks 5 | . . . . . . . 1 . . . 1 . . . . 3 . . . . . Network Status 2 | . . . . . . . 1 . . . 1 . . . . . . . . . . Load Schematic 2 | . . . . . . . . . . . . . . . . 2 . . . . . Build 1 | . . . . . . . . . . . . . . . . 1 . . . . . Repair Station Hacks 4 | . . . . . . . 2 . . . . . . . . . . . . . 2 Scan Component 2 | . . . . . . . 1 . . . . . . . . . . . . . 1 Repair 2 | . . . . . . . 1 . . . . . . . . . . . . . 1 Recycling Unit Hacks . | . . . . . . . . . . . . . . . . . . . . . . Scanalyzer 1 | . . . . . . . . . . . . . . . . . . . . . 1 Insert Component 1 | . . . . . . . . . . . . . . . . . . . . . 1 Garrison Access Hacks 3 | . . . . . . . . . 1 . . . . . . . . . . . 2 Unlock Access 1 | . . . . . . . . . 1 . . . . . . . . . . . . Seal Access 2 | . . . . . . . . . . . . . . . . . . . . . 2 Unauthorized Hacks . | . . . . . . . . . . . . . . . . . . . . . . Terminals . | . . . . . . . . . . . . . . . . . . . . . . Fabricators . | . . . . . . . . . . . . . . . . . . . . . . Repair Stations . | . . . . . . . . . . . . . . . . . . . . . . Recycling Units . | . . . . . . . . . . . . . . . . . . . . . . Scanalyzers . | . . . . . . . . . . . . . . . . . . . . . . Garrison Access . | . . . . . . . . . . . . . . . . . . . . . . Data Cores Recovered . | . . . . . . . . . . . . . . . . . . . . . . Used . | . . . . . . . . . . . . . . . . . . . . . . Hacking Detections 13 | . 1 . . . . . 2 . 1 . 2 . . . . 3 . . . . 4 Full Trace Events 1 | . . . . . . . . . . . . . . . . 1 . . . . . Feedback Events . | . . . . . . . . . . . . . . . . . . . . . . Feedback Blocked . | . . . . . . . . . . . . . . . . . . . . . . Robot Schematics Acquired 5 | . . . . . . . . . . . . . . 5 . . . . . . . Robots Built . | . . . . . . . . . . . . . . . . . . . . . . Authchips . | . . . . . . . . . . . . . . . . . . . . . . Time . | . . . . . . . . . . . . . . . . . . . . . . Total Robot Build Rating . | . . . . . . . . . . . . . . . . . . . . . . Part Schematics Acquired 57 | . . . . . . . . . . . 21 . . 10 . 10 . . . . 16 Parts Built 1 | . . . . . . . . . . . . . . . . 1 . . . . . Authchips . | . . . . . . . . . . . . . . . . . . . . . . Time 84 | . . . . . . . . . . . . . . . . 84 . . . . . Total Part Build Rating 6 | . . . . . . . . . . . . . . . . 6 . . . . . Parts Repaired 2 | . . . . . . . 1 . . . . . . . . . . . . . 1 Time 64 | . . . . . . . 26 . . . . . . . . . . . . . 38 Parts Recycled . | . . . . . . . . . . . . . . . . . . . . . . Recycled Matter . | . . . . . . . . . . . . . . . . . . . . . . Retrieved Matter . | . . . . . . . . . . . . . . . . . . . . . . Retrieved Components . | . . . . . . . . . . . . . . . . . . . . . . Parts Scanalyzed . | . . . . . . . . . . . . . . . . . . . . . . Part Schematics Acquired . | . . . . . . . . . . . . . . . . . . . . . . Parts Damaged . | . . . . . . . . . . . . . . . . . . . . . . Bothacking | -11 -10 -10 -9 -9 -7 -6 -6 -6 -6 -6 -6 -6 -6 -6 -5 -5 -5 -5 -5 -5 -4 ------------ Run | Yrd Mat Min Mat Min Zio Pro Fac Was Fac Gar Fac Low Low Dat Pro Fac Ext Cet Arc Hub Fac Used RIF Installer . | . . . . . . . . . . . . . . . . . . . . . . Robots Hacked . | . . . . . . . . . . . . . . . . . . . . . . Non-combat . | . . . . . . . . . . . . . . . . . . . . . . Combat . | . . . . . . . . . . . . . . . . . . . . . . Robot Hacks Applied . | . . . . . . . . . . . . . . . . . . . . . . Relay Couplers Released 22 | . . . . . . . . . . 22 . . . . . . . . . . . Machine Destruction 22 | . . . . . . . . . . 22 . . . . . . . . . . . Fabnet Peak Effective % . | . . . . . . . . . . . . . . . . . . . . . . Robots Rewired 16 | . . . . . . . . . . . . . . . . . 16 . . . . Allies Hacked 2 | . . . . . . . . . . . . . . . . 2 . . . . . Hacks Repelled . | . . . . . . . . . . . . . . . . . . . . . . Allies | -11 -10 -10 -9 -9 -7 -6 -6 -6 -6 -6 -6 -6 -6 -6 -5 -5 -5 -5 -5 -5 -4 -------- Run | Yrd Mat Min Mat Min Zio Pro Fac Was Fac Gar Fac Low Low Dat Pro Fac Ext Cet Arc Hub Fac Total Allies 58 | . . 5 . . 4 . . 20 . . . . . . . 4 21 . . 4 . Largest Group 20 | . . 5 5 5 7 7 . 20 20 6 . . . . . 4 13 13 1 3 1 Highest-Rated Group 609 | . . 83 83 83 188 188 . 609 609 234 . . . . . 112 462 359 34 277 96 Highest-Rated Ally 96 | . . 31 31 31 37 37 . 46 46 46 . . . . . 28 85 39 34 96 96 Zionite Dispatches 3 | . . . . . . . . . . . . . . . . 1 1 . . 1 . Heavy 2 | . . . . . . . . . . . . . . . . . 1 . . 1 . Fire 1 | . . . . . . . . . . . . . . . . 1 . . . . . Total Orders 2 | . . . . . . . . . . . . . . . . . 2 . . . . STAY 1 | . . . . . . . . . . . . . . . . . 1 . . . . FOLLOW 1 | . . . . . . . . . . . . . . . . . 1 . . . . Ally Attacks 260 | . . . . . . 20 . . 31 42 . . . . . . 78 52 4 24 9 Total Damage 7063 | . . . . . . 316 . . 744 1123 . . . . . . 2036 926 73 1624 221 Kills 47 | . . . . . . 1 . . 5 8 . . . . . . 16 7 1 9 . Allies Corrupted 3 | . . . . . . . . . . . . . . . . 3 . . . . . Allies Melted . | . . . . . . . . . . . . . . . . . . . . . . Intel | -11 -10 -10 -9 -9 -7 -6 -6 -6 -6 -6 -6 -6 -6 -6 -5 -5 -5 -5 -5 -5 -4 ------- Run | Yrd Mat Min Mat Min Zio Pro Fac Was Fac Gar Fac Low Low Dat Pro Fac Ext Cet Arc Hub Fac Robot Analysis Total . | . . . . . . . . . . . . . . . . . . . . . . Derelict Logs Recovered 7 | . . . . . 2 1 . . . . . 2 1 . 1 . . . . . . Drone Launches . | . . . . . . . . . . . . . . . . . . . . . . Drone Recoveries . | . . . . . . . . . . . . . . . . . . . . . . Zionite Intel Received 19 | . . . . . . . . . . 1 7 . . . . 5 . . . 1 5 Branch Access 1 | . . . . . . . . . . . 1 . . . . . . . . . . Emergency Access 2 | . . . . . . . . . . . 1 . . . . . . . . 1 . Guard Positions 2 | . . . . . . . . . . 1 . . . . . . . . . . 1 Component Stockpiles 2 | . . . . . . . . . . . . . . . . 1 . . . . 1 Prototype Stockpiles 1 | . . . . . . . . . . . 1 . . . . . . . . . . Component Schematics 2 | . . . . . . . . . . . 1 . . . . . . . . . 1 Prototype Schematics 2 | . . . . . . . . . . . 1 . . . . 1 . . . . . Unaware Analyses 4 | . . . . . . . . . . . 1 . . . . 2 . . . . 1 Trap Installations 1 | . . . . . . . . . . . . . . . . . . . . . 1 Active Garrisons 1 | . . . . . . . . . . . . . . . . 1 . . . . . Depthwide Sectors/0 1 | . . . . . . . . . . . 1 . . . . . . . . . . Exploration | -11 -10 -10 -9 -9 -7 -6 -6 -6 -6 -6 -6 -6 -6 -6 -5 -5 -5 -5 -5 -5 -4 ------------- Run | Yrd Mat Min Mat Min Zio Pro Fac Was Fac Gar Fac Low Low Dat Pro Fac Ext Cet Arc Hub Fac Turns Passed 17163 | 58 550 325 157 31 992 696 997 132 114 1304 2255 598 635 96 865 1617 1287 341 413 308 3392 Spaces Moved 10581 | 45 391 248 127 20 797 415 465 83 101 896 1298 393 440 80 437 981 686 245 249 221 1963 Core 3 | 3 . . . . . . . . . . . . . . . . . . . . . Treads . | . . . . . . . . . . . . . . . . . . . . . . Legs 7111 | . . . 127 20 797 415 350 . . . . 211 440 80 437 981 686 245 249 221 1852 Wheels 3467 | 42 391 248 . . . . 115 83 101 896 1298 182 . . . . . . . . 111 Hover . | . . . . . . . . . . . . . . . . . . . . . . Flight . | . . . . . . . . . . . . . . . . . . . . . . Fastest Speed 50 | 50 90 100 120 120 120 120 110 110 110 110 95 115 121 121 121 120 120 120 120 118 117 Average Speed 121 | 96 101 112 120 120 120 142 169 110 110 110 120 125 121 121 121 120 120 120 120 118 122 Slowest Speed 190 | 100 105 115 120 120 120 190 190 110 110 110 170 190 122 121 121 122 122 120 120 120 190 Overloaded Moves . | . . . . . . . . . . . . . . . . . . . . . . Propulsion Burnouts . | . . . . . . . . . . . . . . . . . . . . . . Robots Hopped . | . . . . . . . . . . . . . . . . . . . . . . Cave-ins Triggered . | . . . . . . . . . . . . . . . . . . . . . . Exploration Rate (%) 51 | 4 70 70 15 12 89 55 13 66 4 70 47 47 69 74 64 22 66 88 99 27 63 Regions Visited 21 Branch Regions 12 Pre-discovered Areas 8 | . . . . . . 1 . . . . 6 . . 1 . . . . . . . Known Exits Taken 12 | . . 1 . . . . . . 1 . 1 1 1 1 1 1 1 1 1 1 . Unknown Exits Taken 6 | 1 1 . 1 1 1 1 . . . . . . . . . . . . . . . Scrap Searched 18 | . . 1 . 1 4 2 . . . . . 4 2 . 4 . . . . . . Spaces Dug 165 | . . . . . . . 5 . . 9 38 . 5 . . 27 18 . 1 3 59 Terrain Destroyed 1181 | . 19 6 . . . 72 5 . . 157 42 77 154 . 51 27 102 94 26 192 157 Melee 147 | . . . . . . . 5 . . 9 37 . 5 . . 27 1 . 1 3 59 Projectile 7 | . . . . . . . . . . 2 5 . . . . . . . . . . AOE 1027 | . 19 6 . . . 72 . . . 146 . 77 149 . 51 . 101 94 25 189 98 Terrain Rammed . | . . . . . . . . . . . . . . . . . . . . . . Walls Destroyed . | . . . . . . . . . . . . . . . . . . . . . . Machines Disabled . | . . . . . . . . . . . . . . . . . . . . . . Actions | -11 -10 -10 -9 -9 -7 -6 -6 -6 -6 -6 -6 -6 -6 -6 -5 -5 -5 -5 -5 -5 -4 --------- Run | Yrd Mat Min Mat Min Zio Pro Fac Was Fac Gar Fac Low Low Dat Pro Fac Ext Cet Arc Hub Fac Total 13710 | 56 478 280 131 27 834 478 640 123 104 1082 1865 477 496 79 748 1322 1057 283 326 252 2572 Wait 1824 | . 28 15 3 7 30 17 115 41 4 12 432 57 17 . 290 244 179 15 46 14 258 Move 10561 | 44 390 247 126 19 796 414 465 82 100 895 1297 392 439 79 436 980 685 244 248 220 1963 Hop . | . . . . . . . . . . . . . . . . . . . . . . Pick Up 110 | 6 7 2 . 1 5 2 10 . . 5 13 2 . . 4 12 15 . . 1 25 Fast Attach 52 | 6 1 1 . . . 2 4 . . 1 4 2 2 . . 4 5 5 . 3 12 Attach 79 | . 1 2 2 . . 7 3 . . 4 8 . 2 . 1 4 6 . 1 . 38 Detach 3 | . . 1 . . . . . . . . . . . . . . . . . 1 1 Swap 149 | . 8 4 . . . 7 6 . . 24 24 9 7 . 1 7 15 8 3 2 24 Drop 104 | . 5 . . . 3 6 5 . . 13 14 3 1 . . 14 22 5 1 2 10 Fire 265 | . 38 8 . . . 23 22 . . 62 32 11 17 . 16 . 6 6 14 2 8 Melee 452 | . . . . . . . 5 . . 34 41 1 11 . . 57 50 . 13 7 233 Ram . | . . . . . . . . . . . . . . . . . . . . . . Kick . | . . . . . . . . . . . . . . . . . . . . . . Crush . | . . . . . . . . . . . . . . . . . . . . . . Escape Stasis 37 | . . . . . . . 5 . . 32 . . . . . . . . . . . Rewire 74 | . . . . . . . . . . . . . . . . . 74 . . . . Trap . | . . . . . . . . . . . . . . . . . . . . . . Miscellaneous . | . . . . . . . . . . . . . . . . . . . . . . Route ------- -11/Scrapyard -10/Materials (discovered 6 exits: *Mat x3 / [*Min x2] / [Sub]) -10/Mines -9/Materials -9/Mines -7/Zion -6/Proximity Caves -6/Factory (discovered 2 exits: Fac / Low) -6/Waste -6/Factory (discovered 2 exits: *Fac / Gar) -6/Garrison (discovered 3 exits: *Fac x3) -6/Factory (discovered 5 exits: *Fac x3 / *Low x2) -6/Lower Caves -6/Lower Caves (discovered 2 exits: *Fac / *Dat) -6/Data Miner -5/Proximity Caves -5/Factory (discovered 4 exits: *Fac x2 / *Upp / *Ext) -5/Extension (discovered 2 exits: *Fac / *Cet) -5/Cetus -5/Archives (discovered 3 exits: *Fac / *Hub x2) -5/Hub_04(d) -4/Factory (discovered 3 exits: *Res x2 / *Upp) History --------- Turn | Location | Event 9 | -11/Scrapyard | Discovered new exit (range 16) 59 | -11/Scrapyard | Entered Materials 67 | -10/Materials | Discovered new exit (range 14) 196 | -10/Materials | Identified exit to Materials 308 | -10/Materials | Build established: Mutant 345 | -10/Materials | Discovered new exit (range 4) 573 | -10/Materials | Discovered new exit (range 14) 609 | -10/Materials | Entered Mines 664 | -10/Mines | Met a Derelict bent on vengeance 726 | -10/Mines | Assisted by bots powering up and referring to "LRC-V3" 914 | -10/Mines | Discovered exit to Materials (range 5) 934 | -10/Mines | Entered Materials 934 | -9/Materials | Accompanied by 5 allies 934 | -9/Materials | Evolved 2 slots: Propulsion x2 939 | -9/Materials | Led the pair of lost Derelicts to an unsafe place 1038 | -9/Materials | Discovered new exit (range 16) 1091 | -9/Materials | Entered Mines 1091 | -9/Mines | Accompanied by 5 allies 1113 | -9/Mines | A Derelict revealed a hidden shortcut to a safe place 1122 | -9/Mines | Entered Zion 1122 | -7/Zion | Accompanied by 5 allies 1136 | -7/Zion | Given A8's code to call for help 1172 | -7/Zion | Led the pair of lost Derelicts to a safe place 1241 | -7/Zion | Build established: Scavenger-Mutant 1281 | -7/Zion | Learned 12 Factory zone layouts 1419 | -7/Zion | Imprinted 1421 | -7/Zion | Declared Zion's savior 2000 | -7/Zion | Learned 4 Factory zone layouts 2083 | -7/Zion | Discovered new exit (range 10) 2114 | -7/Zion | Entered Proximity Caves 2114 | -6/Proximity Caves | Accompanied by 7 allies 2202 | -6/Proximity Caves | Lost 7 allies 2463 | -6/Proximity Caves | Spotted B-75 Beast 2520 | -6/Proximity Caves | Destroyed B-75 Beast 2542 | -6/Proximity Caves | Lost 5 parts (1p2n1u1w) 2801 | -6/Proximity Caves | Discovered new exit (range 7) 2810 | -6/Proximity Caves | Entered Factory 2810 | -6/Factory | Evolved 6 slots: Power x1, Propulsion x2, Utility x3 2811 | -6/Factory | Identified exit to Factory 2811 | -6/Factory | Identified exit to Lower Caves 2895 | -6/Factory | Spotted B-75 Beast 3506 | -6/Factory | Repaired Aluminum Leg 3807 | -6/Factory | Sucked down chute 3807 | -6/Factory | Entered Waste 3808 | -6/Waste | Joined by Warlord forces that had cleared the area 3886 | -6/Waste | Discovered new exit (range 11) 3939 | -6/Waste | Entered Factory 3939 | -6/Factory | Accompanied by 20 allies 3963 | -6/Factory | Discovered exit to Factory (range 9) 3996 | -6/Factory | Garrison activated, responded to threat 4049 | -6/Factory | Identified exit to Garrison 4053 | -6/Factory | Entered Garrison 4053 | -6/Garrison | Accompanied by 6 allies 4065 | -6/Garrison | Lost 14 allies 4145 | -6/Garrison | Garrison Relay disabled 4238 | -6/Garrison | Triggered checkpoint 4315 | -6/Garrison | Discovered new exit (range 14) 4388 | -6/Garrison | Triggered checkpoint 4414 | -6/Garrison | Garrison Relay disabled 4474 | -6/Garrison | Triggered checkpoint 4513 | -6/Garrison | Retrieved Zion intel report: Guard Positions 4606 | -6/Garrison | Lost 4 allies 4620 | -6/Garrison | Lost 4 parts (1p2n1u) 4624 | -6/Garrison | Garrison Relay disabled 4649 | -6/Garrison | Discovered new exit (range 10) 4748 | -6/Garrison | Triggered checkpoint 4828 | -6/Garrison | Discovered new exit (range 10) 4860 | -6/Garrison | Triggered checkpoint 4902 | -6/Garrison | Triggered checkpoint 4902 | -6/Garrison | Garrison Relay disabled 5038 | -6/Garrison | Triggered checkpoint 5052 | -6/Garrison | Garrison Relay disabled 5102 | -6/Garrison | Triggered checkpoint 5357 | -6/Garrison | Entered Factory 5544 | -6/Factory | Retrieved Zion intel report: Prototype Stockpiles 5659 | -6/Factory | Retrieved Zion intel report: Depthwide Sectors/0 5730 | -6/Factory | Lost 3 parts (1n2u) 5781 | -6/Factory | Retrieved Zion intel report: Component Schematics 5787 | -6/Factory | Discovered exit to Factory (range 2) 5794 | -6/Factory | Retrieved Zion intel report: Unaware Analyses 5803 | -6/Factory | Retrieved Zion intel report: Branch Access 5846 | -6/Factory | Garrison activated, responded to threat 5992 | -6/Factory | Retrieved Zion intel report: Prototype Schematics 6056 | -6/Factory | Retrieved Zion intel report: Emergency Access 6124 | -6/Factory | Discovered exit to Factory (range 15) 6613 | -6/Factory | Terminal network hard line cut 6667 | -6/Factory | Discovered exit to Factory (range 16) 6750 | -6/Factory | Build established: Mutant 7612 | -6/Factory | Entered Lower Caves 8012 | -6/Lower Caves | Encountered a Warlord checkpoint 8033 | -6/Lower Caves | Learned Factory machine intel 8054 | -6/Lower Caves | Learned Factory terminal intel 8054 | -6/Lower Caves | Discovered new exit (range 12) 8066 | -6/Lower Caves | Identified exit to Lower Caves 8210 | -6/Lower Caves | Entered another Lower Caves area 8274 | -6/Lower Caves | Attracted the attention of an 0b10 outpost 8295 | -6/Lower Caves | Build established: Derelict-Mutant 8328 | -6/Lower Caves | Destroyed 13 combat bots 8336 | -6/Lower Caves | Lost 4 parts (2n1u1w) 8415 | -6/Lower Caves | Discovered exit to Factory (range 7) 8725 | -6/Lower Caves | Learned Factory terminal intel 8825 | -6/Lower Caves | Discovered new exit (range 14) 8844 | -6/Lower Caves | Identified exit to Data Miner 8845 | -6/Lower Caves | Entered Data Miner 8845 | -6/Data Miner | Discovered new exit (range 6) 8861 | -6/Data Miner | Met Data Miner 8891 | -6/Data Miner | Learned location of Section 7 (-2) 8891 | -6/Data Miner | Acquired the access code to Warlord's prototype stash 8910 | -6/Data Miner | Build established: Skirmisher 8912 | -6/Data Miner | Received God Mode back door access code from Data Miner 8940 | -6/Data Miner | Identified exit to Proximity Caves 8941 | -6/Data Miner | Entered Proximity Caves 9675 | -5/Proximity Caves | Discovered exit to Factory (range 20) 9750 | -5/Proximity Caves | Learned location of 1 exit from Factory 9806 | -5/Proximity Caves | Entered Factory 9806 | -5/Factory | Evolved 2 slots: Utility x2 9807 | -5/Factory | Identified exit to Factory 9808 | -5/Factory | Loaded intel: 259 machine locations 9809 | -5/Factory | Loaded intel: 28 terminal locations 9852 | -5/Factory | Discovered new exit (range 7) 9859 | -5/Factory | Identified exit to Upper Caves 9925 | -5/Factory | Discovered exit to Factory (range 10) 10106 | -5/Factory | Retrieved Zion intel report: Active Garrisons 10194 | -5/Factory | Lost 4 parts (2p2n) 10246 | -5/Factory | Build established: Hacker-Gladiator 10385 | -5/Factory | Retrieved Zion intel report: Prototype Schematics 10412 | -5/Factory | Retrieved Zion intel report: Unaware Analyses 10649 | -5/Factory | Fabricated Enh. Armored Leg? 10900 | -5/Factory | Retrieved Zion intel report: Component Stockpiles 10959 | -5/Factory | Retrieved Zion intel report: Unaware Analyses 10960 | -5/Factory | Zion Fire squad teleported in 11065 | -5/Factory | Lost 4 allies 11365 | -5/Factory | Discovered new exit (range 6) 11369 | -5/Factory | Identified exit to Extension 11373 | -5/Factory | Terminal network hard line cut 11423 | -5/Factory | Entered Extension 11573 | -5/Extension | Rescued a captive Derelict 11591 | -5/Extension | Lost 3 parts (3n) 11908 | -5/Extension | Zion Heavy squad teleported in 12097 | -5/Extension | Build established: Commander-Gladiator 12533 | -5/Extension | Rescued a captive Derelict 12537 | -5/Extension | Rescued a captive Derelict 12660 | -5/Extension | Discovered exit to Factory (range 10) 12661 | -5/Extension | Discovered new exit (range 6) 12667 | -5/Extension | Identified exit to Cetus 12710 | -5/Extension | Entered Cetus 12710 | -5/Cetus | Accompanied by 13 allies 12724 | -5/Cetus | Spotted Cetus Guard 12724 | -5/Cetus | Spotted Cetus Guard 12724 | -5/Cetus | Spotted Cetus Guard 12724 | -5/Cetus | Spotted Cetus Guard 12744 | -5/Cetus | Destroyed Cetus Guard 12746 | -5/Cetus | Allies destroyed Cetus Guard 12746 | -5/Cetus | Destroyed Cetus Guard 12753 | -5/Cetus | Allies destroyed Cetus Guard 12772 | -5/Cetus | Lost 6 allies 12775 | -5/Cetus | Lost 4 parts (3n1u) 12811 | -5/Cetus | Cetus Manufacturing Module disabled 12856 | -5/Cetus | Lost 6 allies 12975 | -5/Cetus | Discovered new exit (range 22) 12999 | -5/Cetus | Identified exit to Archives 13025 | -5/Cetus | Spotted Cetus Guard 13025 | -5/Cetus | Spotted Cetus Guard 13025 | -5/Cetus | Spotted Cetus Guard 13025 | -5/Cetus | Spotted Cetus Guard 13051 | -5/Cetus | Entered Archives 13051 | -5/Archives | Accompanied by 1 ally 13100 | -5/Archives | Build established: Scavenger-Mutant 13214 | -5/Archives | Discovered new exit (range 22) 13268 | -5/Archives | Unable to access archive contents 13274 | -5/Archives | Discovered new exit (range 22) 13280 | -5/Archives | Unable to access archive contents 13312 | -5/Archives | Discovered exit to Factory (range 22) 13379 | -5/Archives | Identified exit to Hub_04(d) 13464 | -5/Archives | Entered Hub_04(d) 13470 | -5/Hub_04(d) | Build established: Scavenger-Gladiator 13541 | -5/Hub_04(d) | Retrieved Zion intel report: Emergency Access 13542 | -5/Hub_04(d) | Zion Heavy squad teleported in 13545 | -5/Hub_04(d) | Enhanced Grunt warped into view, answering call for help 13551 | -5/Hub_04(d) | Enhanced Grunt warped into view, answering call for help 13573 | -5/Hub_04(d) | Found Prototype Protection 13667 | -5/Hub_04(d) | Network Hub disabled 13764 | -5/Hub_04(d) | First assault squad dispatched 13767 | -5/Hub_04(d) | Discovered exit to Factory (range 8) 13772 | -5/Hub_04(d) | Entered Factory 13772 | -4/Factory | Accompanied by 1 ally 13772 | -4/Factory | Evolved 2 slots: Utility x2 13772 | -4/Factory | Identified Zio. Weapon Casing 13773 | -4/Factory | Loaded intel: 25 terminal locations 14011 | -4/Factory | Spotted B-86 Titan 14072 | -4/Factory | Build established: Messiah-Gladiator 14320 | -4/Factory | Repaired Carbon-fiber Leg 14603 | -4/Factory | Lost 4 parts (2p2n) 14656 | -4/Factory | Discovered new exit (range 9) 14662 | -4/Factory | Identified exit to Upper Caves 14757 | -4/Factory | Retrieved Zion intel report: Trap Installations 14804 | -4/Factory | Spotted B-86 Titan 14874 | -4/Factory | Retrieved Zion intel report: Guard Positions 14887 | -4/Factory | Retrieved Zion intel report: Component Stockpiles 15200 | -4/Factory | Retrieved Zion intel report: Component Schematics 15214 | -4/Factory | Retrieved Zion intel report: Unaware Analyses 15218 | -4/Factory | Terminal network hard line cut 15595 | -4/Factory | Build established: Scavenger-Gladiator 15731 | -4/Factory | Discovered new exit (range 2) 15732 | -4/Factory | Identified exit to Research 15772 | -4/Factory | First assault squad dispatched 15874 | -4/Factory | Lost 3 parts (2n1u) 16145 | -4/Factory | System corruption reached 10% 16183 | -4/Factory | Lost 5 parts (1n4u) 16317 | -4/Factory | System corruption reached 30% 16355 | -4/Factory | Lost 5 parts (1p1n2u1w) 16593 | -4/Factory | Discovered exit to Research (range 15) 16743 | -4/Factory | Build established: Hacker-Mutant 16813 | -4/Factory | Core integrity fell below 50% 16940 | -4/Factory | Lost 18 parts (3p10n4u1w) 17013 | -4/Factory | Core integrity fell below 20% 17040 | -4/Factory | Incoming assault squad redirected 17049 | -4/Factory | Incoming assault squad redirected 17164 | -4/Factory | Destroyed by G-67 Veteran with Plasma Rifle Last Messages --------------- 17022_ System corrupted: IFF burst signal emitted. 17022_ ALERT: Significant disruption in Zone 8F, multiple assault carriers dispatched. 17022_ P-70 Sage suffers critical hit (Smash). 17022_ P-70 Sage destroyed. 17039_ System corrupted: Matter fused (-7). 17040_ ALERT: Higher priority target reported, redirecting assault. 17071_ YS7<,ELPKUNBHG&&Q&AA9 OP3 17087_ System corrupted: Matter fused (-8). 17101_ Phasing Sabre destroyed. 17106_ S/A5GEZZYO3YEROUU&,NRK%BYJ